{"text_format":"1","workbook":"xlsx","n_sheets":2,"sheets":["Расчет","Медикаменты"],"not_rendered":{"charts":0,"images":0,"macros":1,"external_links":0,"defined_names":5,"comments":0,"pivot_tables":0},"unopened":[],"bounds":{"document_bytes":16777216,"sheet_cells":100000,"rows_first":2000,"rows_last":500,"rows_between":2000,"halvings":0,"cell_chars":16384,"cell_head_chars":4096},"cells_cut":0,"cells_raw":0,"read":"whole","date_system":"1900"}

{"sheet":"Расчет","index":0,"n_rows":18,"n_cols":16,"rows_kept":18,"cut":false,"hidden":false,"merged":[]}
[null,null,null,null,null,null,null,null,null,null,null,null,null,null,null,{"$f":"IF(Опер=\"Операции со складом\",,IFERROR(INDEX(Договоры_tb[Поставщик],SMALL(IF(Договоры_tb[Наименование]=Наим,ROW(Договоры_tb[Наименование])-ROW(Договоры_tb[[#Headers],[Наименование]])),ROW())),))","v":0}]
[null,null,null,null,null,null,null,null,null,null,null,null,null,null,null,{"$f":"IF(Опер=\"Операции со складом\",,IFERROR(INDEX(Договоры_tb[Поставщик],SMALL(IF(Договоры_tb[Наименование]=Наим,ROW(Договоры_tb[Наименование])-ROW(Договоры_tb[[#Headers],[Наименование]])),ROW())),))","v":0}]
[null,null,null,null,null,null,null,null,null,null,null,null,null,null,null,{"$f":"IF(Опер=\"Операции со складом\",,IFERROR(INDEX(Договоры_tb[Поставщик],SMALL(IF(Договоры_tb[Наименование]=Наим,ROW(Договоры_tb[Наименование])-ROW(Договоры_tb[[#Headers],[Наименование]])),ROW())),))","v":0}]
[null,null,null,null,null,null,null,null,null,null,null,null,null,null,null,{"$f":"IF(Опер=\"Операции со складом\",,IFERROR(INDEX(Договоры_tb[Поставщик],SMALL(IF(Договоры_tb[Наименование]=Наим,ROW(Договоры_tb[Наименование])-ROW(Договоры_tb[[#Headers],[Наименование]])),ROW())),))","v":0}]
[null,null,null,null,null,null,null,null,null,null,null,null,null,null,null,{"$f":"IF(Опер=\"Операции со складом\",,IFERROR(INDEX(Договоры_tb[Поставщик],SMALL(IF(Договоры_tb[Наименование]=Наим,ROW(Договоры_tb[Наименование])-ROW(Договоры_tb[[#Headers],[Наименование]])),ROW())),))","v":0}]
[null,null,null,null,null,null,null,null,null,null,null,null,null,null,null,{"$f":"IF(Опер=\"Операции со складом\",,IFERROR(INDEX(Договоры_tb[Поставщик],SMALL(IF(Договоры_tb[Наименование]=Наим,ROW(Договоры_tb[Наименование])-ROW(Договоры_tb[[#Headers],[Наименование]])),ROW())),))","v":0}]
[null,null,null,null,null,null,null,null,null,null,null,null,null,null,null,{"$f":"IF(Опер=\"Операции со складом\",,IFERROR(INDEX(Договоры_tb[Поставщик],SMALL(IF(Договоры_tb[Наименование]=Наим,ROW(Договоры_tb[Наименование])-ROW(Договоры_tb[[#Headers],[Наименование]])),ROW())),))","v":0}]
[null,null,null,null,null,null,null,null,null,null,null,null,null,null,null,{"$f":"IF(Опер=\"Операции со складом\",,IFERROR(INDEX(Договоры_tb[Поставщик],SMALL(IF(Договоры_tb[Наименование]=Наим,ROW(Договоры_tb[Наименование])-ROW(Договоры_tb[[#Headers],[Наименование]])),ROW())),))","v":0}]
[null,null,"Дата","Наименование","Операция","Выбор поставщика","Выбор договора","Срок годности","Остаток у поставщика","Наличие","Приход","Расход","Остаток","Кому выдано",null,{"$f":"IF(Опер=\"Операции со складом\",,IFERROR(INDEX(Договоры_tb[Поставщик],SMALL(IF(Договоры_tb[Наименование]=Наим,ROW(Договоры_tb[Наименование])-ROW(Договоры_tb[[#Headers],[Наименование]])),ROW())),))","v":0}]
[null,null,"2018-04-01","Пробирка Vacuette (4 мл., 50 шт.)","Операции со складом",0,"нет",null,null,{"$f":"IFERROR(IFERROR(LOOKUP(,-1/(Вводные[[#This Row],[Наименование]]=$D$9:D9),$M$9:M9),VLOOKUP(Вводные[[#This Row],[Наименование]],#REF!,6,)),\"\")","v":""},null,null,{"$f":"IFERROR(Вводные[Наличие]+Вводные[Приход]-Вводные[Расход],\"\")","v":""},null,null,{"$f":"IF(Опер=\"Операции со складом\",,IFERROR(INDEX(Договоры_tb[Поставщик],SMALL(IF(Договоры_tb[Наименование]=Наим,ROW(Договоры_tb[Наименование])-ROW(Договоры_tb[[#Headers],[Наименование]])),ROW())),))","v":0}]
[null,null,"2018-04-01","Пробирка Vacuette (4 мл., 50 шт.)","Заказано у поставщика",null,"да",null,null,{"$f":"IFERROR(IFERROR(LOOKUP(,-1/(Вводные[[#This Row],[Наименование]]=$D$9:D10),$M$9:M10),VLOOKUP(Вводные[[#This Row],[Наименование]],#REF!,6,)),\"\")","v":""},null,null,{"$f":"IFERROR(Вводные[Наличие]+Вводные[Приход]-Вводные[Расход],\"\")","v":""},null,null,{"$f":"IF(Опер=\"Операции со складом\",,IFERROR(INDEX(Договоры_tb[Поставщик],SMALL(IF(Договоры_tb[Наименование]=Наим,ROW(Договоры_tb[Наименование])-ROW(Договоры_tb[[#Headers],[Наименование]])),ROW())),))","v":0}]
[null,null,"2018-04-01","Пробирка Vacuette (8 мл., 50 шт.)","Получено от поставщика","ООО \"Медресурс\"","да",null,null,{"$f":"IFERROR(IFERROR(LOOKUP(,-1/(Вводные[[#This Row],[Наименование]]=$D$9:D11),$M$9:M11),VLOOKUP(Вводные[[#This Row],[Наименование]],#REF!,6,)),\"\")","v":""},null,null,{"$f":"IFERROR(Вводные[Наличие]+Вводные[Приход]-Вводные[Расход],\"\")","v":""},null,null,{"$f":"IF(Опер=\"Операции со складом\",,IFERROR(INDEX(Договоры_tb[Поставщик],SMALL(IF(Договоры_tb[Наименование]=Наим,ROW(Договоры_tb[Наименование])-ROW(Договоры_tb[[#Headers],[Наименование]])),ROW())),))","v":0}]
[null,null,"2018-04-01","Пробирка Vacuette (4 мл., 50 шт.)","Операции со складом",0,null,null,null,{"$f":"IFERROR(IFERROR(LOOKUP(,-1/(Вводные[[#This Row],[Наименование]]=$D$9:D12),$M$9:M12),VLOOKUP(Вводные[[#This Row],[Наименование]],#REF!,6,)),\"\")","v":""},null,null,{"$f":"IFERROR(Вводные[Наличие]+Вводные[Приход]-Вводные[Расход],\"\")","v":""},null,null,{"$f":"IF(Опер=\"Операции со складом\",,IFERROR(INDEX(Договоры_tb[Поставщик],SMALL(IF(Договоры_tb[Наименование]=Наим,ROW(Договоры_tb[Наименование])-ROW(Договоры_tb[[#Headers],[Наименование]])),ROW())),))","v":0}]
[null,null,null,null,null,null,null,null,null,null,null,null,null,null,null,{"$f":"IF(Опер=\"Операции со складом\",,IFERROR(INDEX(Договоры_tb[Поставщик],SMALL(IF(Договоры_tb[Наименование]=Наим,ROW(Договоры_tb[Наименование])-ROW(Договоры_tb[[#Headers],[Наименование]])),ROW())),))","v":0}]
[null,null,null,null,null,null,null,null,null,null,null,null,null,null,null,{"$f":"IF(Опер=\"Операции со складом\",,IFERROR(INDEX(Договоры_tb[Поставщик],SMALL(IF(Договоры_tb[Наименование]=Наим,ROW(Договоры_tb[Наименование])-ROW(Договоры_tb[[#Headers],[Наименование]])),ROW())),))","v":0}]
[null,null,null,null,null,null,null,null,null,null,null,null,null,null,null,{"$f":"IF(Опер=\"Операции со складом\",,IFERROR(INDEX(Договоры_tb[Поставщик],SMALL(IF(Договоры_tb[Наименование]=Наим,ROW(Договоры_tb[Наименование])-ROW(Договоры_tb[[#Headers],[Наименование]])),ROW())),))","v":0}]
[null,null,null,null,null,null,null,null,null,null,null,null,null,null,null,{"$f":"IF(Опер=\"Операции со складом\",,IFERROR(INDEX(Договоры_tb[Поставщик],SMALL(IF(Договоры_tb[Наименование]=Наим,ROW(Договоры_tb[Наименование])-ROW(Договоры_tb[[#Headers],[Наименование]])),ROW())),))","v":0}]
[null,null,null,null,null,null,null,null,null,null,null,null,null,null,null,{"$f":"IF(Опер=\"Операции со складом\",,IFERROR(INDEX(Договоры_tb[Поставщик],SMALL(IF(Договоры_tb[Наименование]=Наим,ROW(Договоры_tb[Наименование])-ROW(Договоры_tb[[#Headers],[Наименование]])),ROW())),))","v":0}]

{"sheet":"Медикаменты","index":1,"n_rows":322,"n_cols":25,"rows_kept":322,"cut":false,"hidden":false,"merged":[]}
["Наименование новое","Единицы","Количество","Цена за упаковку","Единицы в упаковке","Количество в упаковке","Цена за единицу",null,null,null,"Поставщик","Контактные данные","Договор",null,null,"Наименование","Поставщик","Договор","Столбец3","Единицы","Обеъем закупки",null,null,null,"Медикаменты"]
["?водный раствор люголя","?",null,null,null,null,"",null,null,null,"ООО \"Медресурс\"","Иванов, 11-22-99",12345,null,null,"Пробирка Vacuette (4 мл., 50 шт.)","ООО \"Медресурс\"",12345,null,"уп.",100,null,null,null,"Бинт (нест., 10 м.х15 см.)"]
["?Детский жирный крем","?",null,null,null,null,"",null,null,null,"ООО \"Сибмедком\"","Петров, 895012345678 (9-00-18-00)",4569,null,null,"Пробирка Vacuette (8 мл., 50 шт.)","ООО \"Медресурс\"",12345,null,"уп.",150,null,null,null,"Бинт (нест., 5 м.х10 см.)"]
["?Иголка","?",null,null,null,null,"",null,null,null,"ООО \"Медресурс\"","Иванов, 11-22-99","ПР-123",null,null,"Пробирка Vacuette (9 мл., 50 шт.)","ООО \"Медресурс\"",12345,null,"уп.",200,null,null,null,"Бинт (стер. 10 м.х15 см.)"]
["?Лекарственные стредства","?",null,null,null,null,"",null,null,null,"ООО \"Восток\"","Маша, 952632588932","Кн-999",null,null,"Пробирка вакуумная Cerebrum (4 мл., 50 шт.)","ООО \"Медресурс\"",12345,null,"уп.",20,null,null,null,"Бинт (стер. 5 м.х10 см.)"]
["?Пеленка одноразовая","шт.",1,370,null,null,"",null,null,null,"ООО \"Сибмедком\"","Петров, 895012345678 (9-00-18-00)",5996,null,null,"Пробирка вакуумная Cerebrum (5 мл., 50 шт.)","ООО \"Медресурс\"",12345,null,"уп.",30,null,null,null,"Контейнер для сбора мочи (стер., 100 мл.)"]
["?Перевязочный метариал","?",null,null,null,null,"",null,null,null,null,null,null,null,null,"Пробирка вакуумная Cerebrum (8 мл., 50 шт.)","ООО \"Медресурс\"",12345,null,"уп.",40,null,null,null,"Контейнер для утилизации отходов МК-01 (однораз., желтый, 3 л.)"]
["?Пробирка (с активатором свертывания)","шт.",1,1200,null,null,"",null,null,null,null,null,null,null,null,"Пробирка микровета с ЭДТА (0,2 мл., 100 шт.)","ООО \"Медресурс\"",12345,null,"уп.",80,null,null,null,"Контейнер для утилизации отходов МК-04 (многораз., бирюзовый, 7,5 л.)."]
["?Салфетка для обработки датчиков","шт.",1,214.02,null,null,"",null,null,null,null,null,null,null,null,"Пробирка вакуумная Cerebrum (4 мл., 50 шт.)","ООО \"Сибмедком\"",4569,null,"уп.",50,null,null,null,"Контейнер для утилизации отходов МК-05 (многораз., желтый 50 л.)"]
["?Салфетка одноразовая","шт.",1,214.02,null,null,"",null,null,null,null,null,null,null,null,"Пакеты упаковочные для стерилизации СтериТ (150*250, 100 шт.)","ООО \"Сибмедком\"",4569,null,"уп.",50,null,null,null,"Контрольная сыворотка на РМП (отрицательный) (1 мл., 10 шт.)"]
["?Спирт","мл.",null,28,null,null,"",null,null,null,null,null,null,null,null,"Пакеты упаковочные для стерилизации СтериТ (200*300, 100 шт.)","ООО \"Сибмедком\"",4569,null,"уп.",60,null,null,null,"Контрольная сыворотка на РМП (положительная) (1 мл., 10 шт.)"]
["?Спиртовая салфетка","шт.",1,1.35,null,null,"",null,null,null,null,null,null,null,null,"Пакеты упаковочные для стерилизации СтериТ (200*330, 100 шт.)","ООО \"Сибмедком\"",4569,null,"уп.",180,null,null,null,"Контрольная сыворотка на РМП (слабоположительный) (1 мл., 10 шт.)"]
["?Тампон для задней тампонады","?",null,null,null,null,"",null,null,null,null,null,null,null,null,"Шприц (1 мл.)","ООО \"Сибмедком\"",4569,null,"шт.",120,null,null,null,"Контрольный материал гематологических анализаторов (2х2,5 норм. ур., 1х2,5 ср. ур., 1х2,5 выс. ур.)"]
["?Термобумага для эхограмм","снимок",null,4.6399999999999997,null,null,"",null,null,null,null,null,null,null,null,"Шприц (10 мл.)","ООО \"Сибмедком\"",4569,null,"шт.",180,null,null,null,"Пакеты упаковочные для стерилизации СтериТ (150*250, 100 шт.)"]
["?Турудна","?",null,null,null,null,"",null,null,null,null,null,null,null,null,"Шприц (2 мл. 2 иглы)","ООО \"Сибмедком\"",4569,null,"шт.",90,null,null,null,"Пакеты упаковочные для стерилизации СтериТ (200*300, 100 шт.)"]
["?Физраствор","?",null,null,null,null,"",null,null,null,null,null,null,null,null,"Шприц (2 мл.)","ООО \"Сибмедком\"",4569,null,"шт.",110,null,null,null,"Пакеты упаковочные для стерилизации СтериТ (200*330, 100 шт.)"]
["?Шовный материал","?",null,null,null,null,"",null,null,null,null,null,null,null,null,"Шприц (20 мл.)","ООО \"Сибмедком\"",4569,null,"шт.",150,null,null,null,"Пробирка Vacuette (4 мл., 50 шт.)"]
["Адреналин гидрохлорид (р-р, 0,1%, 1 мл.)","уп.",20,74.510000000000005,null,null,"",null,null,null,null,null,null,null,null,"Шприц (5 мл. 2 иглы)","ООО \"Сибмедком\"",4569,null,"шт.",130,null,null,null,"Пробирка Vacuette (8 мл., 50 шт.)"]
["Азитромицин (таб., 125 мг, №6)","уп.",10,206.67,null,null,"",null,null,null,null,null,null,null,null,"Шприц (5 мл.)","ООО \"Сибмедком\"",4569,null,"шт.",120,null,null,null,"Пробирка Vacuette (9 мл., 50 шт.)"]
["Азопирам","комп.",10,364.44,null,null,"",null,null,null,null,null,null,null,null,"Пробирка вакуумная Cerebrum (4 мл., 50 шт.)","ООО \"Медресурс\"","ПР-123",null,"уп.",150,null,null,null,"Пробирка вакуумная Cerebrum (4 мл., 50 шт.)"]
["Азур-эозин по Романовскому (р-р, 0,76%, окраска 6000, 1 л.)","фл.",6,261.60000000000002,"мл.",1000,0.2616,null,null,null,null,null,null,null,null,"Бинт (нест., 10 м.х15 см.)","ООО \"Медресурс\"","ПР-123",null,"уп.",100,null,null,null,"Пробирка вакуумная Cerebrum (5 мл., 50 шт.)"]
["Актовегин (р-р, 5 мл., №5)","уп.",2,675,null,null,"",null,null,null,null,null,null,null,null,"Бинт (нест., 5 м.х10 см.)","ООО \"Медресурс\"","ПР-123",null,"уп.",120,null,null,null,"Пробирка вакуумная Cerebrum (8 мл., 50 шт.)"]
["Аллерген из библиотечной пыли для диагностики","комп.",2,4216.63,"комп.",1,4216.63,null,null,null,null,null,null,null,null,"Бинт (стер. 10 м.х15 см.)","ООО \"Медресурс\"","ПР-123",null,"уп.",90,null,null,null,"Пробирка микровета с ЭДТА (0,2 мл., 100 шт.)"]
["Аллерген из дафнии для диагностики","комп.",1,4216.63,"комп.",1,4216.63,null,null,null,null,null,null,null,null,"Бинт (стер. 5 м.х10 см.)","ООО \"Медресурс\"","ПР-123",null,"уп.",100,null,null,null,"Шприц (1 мл.)"]
["Аллерген из домашней пыли для диагностики","комп.",2,6644.33,"комп.",1,6644.33,null,null,null,null,null,null,null,null,"Контейнер для сбора мочи (стер., 100 мл.)","ООО \"Восток\"","Кн-999",null,"шт.",140,null,null,null,"Шприц (10 мл.)"]
["Аллерген из клеща Dermatophagoides pteronissinus для диагностики и лечения","комп.",2,6644.33,"комп.",1,6644.33,null,null,null,null,null,null,null,null,"Пробирка Vacuette (4 мл., 50 шт.)","ООО \"Восток\"","Кн-999",null,"шт.",110,null,null,null,"Шприц (2 мл. 2 иглы)"]
["Аллерген из пера подушек для диагностики и лечения","комп.",2,6644.33,"комп.",1,6644.33,null,null,null,null,null,null,null,null,"Контейнер для утилизации отходов МК-01 (однораз., желтый, 3 л.)","ООО \"Восток\"","Кн-999",null,"шт.",200,null,null,null,"Шприц (2 мл.)"]
["Аллерген из перхоти лошади для диагностики","комп.",2,4216.63,"комп.",1,4216.63,null,null,null,null,null,null,null,null,"Контейнер для утилизации отходов МК-04 (многораз., бирюзовый, 7,5 л.).","ООО \"Восток\"","Кн-999",null,"шт.",60,null,null,null,"Шприц (20 мл.)"]
["Аллерген из пыльцы березы висячей для диагностики и лечения","комп.",2,3932.61,"комп.",1,3932.61,null,null,null,null,null,null,null,null,"Контейнер для утилизации отходов МК-05 (многораз., желтый 50 л.)","ООО \"Восток\"","Кн-999",null,"шт.",80,null,null,null,"Шприц (5 мл. 2 иглы)"]
["Аллерген из пыльцы клена ясенелистного для диагностики и лечения","комп.",1,3932.61,"комп.",1,3932.61,null,null,null,null,null,null,null,null,"Контрольная сыворотка на РМП (отрицательный) (1 мл., 10 шт.)","ООО \"Восток\"","Кн-999",null,"уп.",200,null,null,null,"Шприц (5 мл.)"]
["Аллерген из пыльцы лебеды татарской для диагностики и лечения","комп.",2,3932.61,"комп.",1,3932.61,null,null,null,null,null,null,null,null,"Контрольная сыворотка на РМП (положительная) (1 мл., 10 шт.)","ООО \"Восток\"","Кн-999",null,"уп.",60]
["Аллерген из пыльцы луговых трав для диагностики и лечения","комп.",2,4424.42,"комп.",1,4424.42,null,null,null,null,null,null,null,null,"Контрольная сыворотка на РМП (слабоположительный) (1 мл., 10 шт.)","ООО \"Восток\"","Кн-999",null,"уп.",90]
["Аллерген из пыльцы одуванчика лекарственного для диагностики и лечения","комп.",1,3932.61,"комп.",1,3932.61,null,null,null,null,null,null,null,null,"Пробирка Vacuette (4 мл., 50 шт.)","ООО \"Сибмедком\"",5996,null,"уп.",70]
["Аллерген из пыльцы полыни горькой для диагностики и лечения","комп.",2,3932.61,"комп.",1,3932.61,null,null,null,null,null,null,null,null,"Пакеты упаковочные для стерилизации СтериТ (200*300, 100 шт.)","ООО \"Сибмедком\"",5996,null,"уп.",100]
["Аллерген эпидермальный из шерсти кошки для диагностики","комп.",2,4216.63,"комп.",1,4216.63,null,null,null,null,null,null,null,null,"Пакеты упаковочные для стерилизации СтериТ (200*330, 100 шт.)","ООО \"Сибмедком\"",5996,null,"уп.",200]
["Аллерген эпидермальный из шерсти собаки для диагностики","комп.",2,4216.63,"комп.",1,4216.63]
["Амброксол (р-р для приема внутрь и ингаляций, 7,5 мг./1 мл., 100 мл.)","фл.",5,171.13,null,null,""]
["Аммиака раствор (амп., 10%, 40 мл.)","фл.",50,21,null,null,""]
["Баллон Политцера с оливами","набор",1,3422.4,null,null,""]
["Берет медицинский (однораз.)","шт.",1,11,"шт.",1,11]
["Беродуал (р-р для ингаляций флакон/кап. по 20 мл.)","фл.",5,260.13,null,null,""]
["Бинт (нест., 10 м.х15 см.)","шт.",1,21.36,"шт.",1,21.36]
["Бинт (нест., 5 м.х10 см.)","шт.",1,6.13,"шт.",1,6.13]
["Бинт (стер. 10 м.х15 см.)","шт.",1,23.68,"шт.",1,23.68]
["Бинт (стер. 5 м.х10 см.)","шт.",1,7.44,"шт.",1,7.44]
["Бонадерм - крем для рук восстанавливающий (100 мл.)","шт.",1,99.12,"мл.",100,0.99120000000000008]
["Бонадерм-гель (100 мл.)","шт.",1,178.18,"мл.",100,1.7818000000000001]
["Бонадерм-ИП салфетки (100 шт.)","уп.",150,324.5,"шт.",100,3.2450000000000001]
["Бонадерм-Ультра (100 мл., с распыляющей насадкой)","шт.",1,149.86000000000001,"мл.",100,1.4986000000000002]
["Бонадерм-Ультра (50 мл., с распыляющей насадкой)","шт.",1,118,"мл.",50,2.36]
["Бриллиантовый зеленый (амп., 1%, 10 мл.)","шт.",1,9.5,"мл.",10,0.95]
["Бромгексин (таб., 4 мг., № 50)","уп.",50,70.77,null,null,""]
["Бромгексин (таб., 8 мг., № 20)","уп.",20,9.2799999999999994,null,null,""]
["Бумага для спирографа Микролаб viasys (110*12*12)","уп.",5,72.34,null,null,""]
["Бумага УЗИ сканер (20 м.)","рул.",2,1006.3,"м.",20,50.314999999999998]
["Бумага ЭКГ (110 мм. х 30 мм.)","рул.",60,108,null,null,""]
["Бумага ЭКГ (80 мм. х 70 мм., 300 л.)","пач.",50,74.61,null,null,""]
["Буфер для окраски мазков (рН от 6,8 до 7,2, 10 мл.)","фл.",6,46.9,null,null,""]
["Вазелиновое масло (100 мл.)","шт.",1,52.8,"мл.",100,0.52800000000000002]
["Валериана (20 мг., №50)","уп.",null,null,null,null,""]
["Вата (нест. 100 гр.)","уп.",70,21.1,null,null,""]
["Вата (нест. 250 гр.)","уп.",60,46.92,null,null,""]
["Вата (стер. 100 гр.)","уп.",5,28.54,null,null,""]
["Ватные палочки, ушные (100 шт.)","уп.",5000,0.14000000000000001,"шт.",100,1.4000000000000002E-3]
["Ватные шарики (стер.)","уп.",null,null,null,null,""]
["Вентолин Небулы (амп., для ингаляций 1 мг/мл., 2,5 мл. № 20)","уп.",3,265.13,"шт.",20,13.256499999999999]
["Винпоцетин (таб., 5 мг., №10)","уп.",70,54.6,null,null,""]
["Винпоцетин-АКОС (амп., 2 мл., №10)","уп.",20,57.24,null,null,""]
["Вода дистиллированная (амп., 50 мл., №10)","уп.",60,30.25,null,null,""]
["Воронка ушная (1-4 мм.)","шт.",1,200,"шт.",1,200]
["Воронка ушная (2-5 мм.)","шт.",1,200,"шт.",1,200]
["Гель для УЗИ (1 л.)","фл.",10,169.58,null,1000,0.16958000000000001]
["Гель для УЗИ (5 л.)","кан.",1,633.66,null,null,""]
["Гипотиазид (таб., 25 мг., №20)","уп.",null,null,null,null,""]
["Гистамин дигидрохлорид 0,1% раствор (аллерген), шт",null,null,1100,null,null,""]
["Глицин (таб., 100 мг., №50)","уп.",75,31,null,null,""]
["Губка гемостатическая коллагеновая (90х90 мм., №1)","уп.",150,95,null,null,""]
["Дез.средство \"Литосептин\", 1л, л",null,null,1206,null,null,""]
["Дез.средство \"Литосептин\", 5л, л",null,null,1120.7,null,null,""]
["Дез.средство \"ОДС-14\", 1л, л",null,null,936.86,null,null,""]
["Дезинфицирующее средство \"Бонацид\", л",null,null,1237.82,null,null,""]
["Дексаметазон (сусп., 5 мл., №1)","уп.",3,33.43,null,null,""]
["Диаскинтест, доз.",null,null,53.69,null,null,""]
["Диклофенак (75 мг., №10)","уп.",null,null,null,null,""]
["Димексид (100 мл.)","уп.",4,46.3,null,null,""]
["Диспенсер для листовых полотенец","шт.",1,908.6,"шт.",1,908.6]
["Дозатор автоматический BIOHIT (100-1000 мкл.)","шт.",1,6800,"шт.",1,6800]
["Дозатор автоматический BIOHIT (500-5000 мкл.)","шт.",1,10744,"шт.",1,10744]
["Дозатор жидк. дез. средств локтевой","шт.",1,1843.75,"шт.",1,1843.75]
["Доксициклин","уп.",null,15.78,null,null,""]
["Дюфастон (таб., 10 мг., №20)","уп.",null,null,null,null,""]
["Ёмкость для сбора использованного медицинского материала класса Б","шт.",1,44.32,"шт.",1,44.32]
["Жгут венозный детский","шт.",1,382,"шт.",1,382]
["Жгут многоразовый автоматический Vacuette","шт.",1,617,"шт.",1,617]
["Жгут резиновый кровостанавливающий (1,5 м.)","шт.",1,27,"шт.",1,27]
["Зажим типа Москит изогнутый (140 мм.)","шт.",1,384,"шт.",1,384]
["Зажим типа Москит прямой (150 мм.)","шт.",1,346,"шт.",1,346]
["Зеркало гинекологическое \"Куско\"","шт.",1,null,"шт.",1,0]
["Зеркало носовое (№30)","шт.",1,603,"шт.",1,603]
["Зеркало носовое (№35)","шт.",1,603,"шт.",1,603]
["Зеркало носовое (№40)","шт.",1,603,"шт.",1,603]
["Зонд аттиковый (140 мм.)","шт.",1,430,"шт.",1,430]
["Зонд урогенитальный (стер., однораз.)","шт.",1,5.42,"шт.",1,5.42]
["Игла двусторонняя Vacuette ( 0,8х38 мм (21Gх1 ½), 100 шт.)","уп.",80,965,"шт.",100,9.65]
["Игла зеленая для пробирок Vacuette (100 шт.)","уп.",80,965,"шт.",100,9.65]
["Иглодержатель","шт.",1,430,"шт.",1,430]
["Инструмент универсальный сенсорный","шт.",1,1205,"шт.",1,1205]
["Кавинтон (амп., 10 мг., 2,0, №10)","уп.",null,null,null,null,""]
["Кавинтон (таб. 5 мг., №50)","уп.",null,null,null,null,""]
["Калибратор (10 ммоль/л, 4 шт.)","уп.",2,450,"шт.",4,112.5]
["Кальция хлорид (10%, 5,0 №10)","уп.",null,null,null,null,""]
["Камера Горяева","шт.",1,584.53,"шт.",1,584.53]
["Канюля для промывания аттика","шт.",1,298,"шт.",1,298]
["Капилляр Панченкова ","шт.",1,9.3000000000000007,"шт.",1,9.3000000000000007]
["Катетер урологический (женский, стер.)","шт.",1,6.88,"шт.",1,6.88]
["Кислородная подушка (25 л.)","шт.",1,1123,"шт.",1,1123]
["Кислота уксусная (р-р)","уп.",null,54,null,null,""]
["Колларгол (р-р)","уп.",null,98,null,null,""]
["Комплект противоэпидемический","комп.",1,1787.52,null,null,""]
["Контейнер для сбора кала (стер., 40 мл.)","шт.",1,4.12,"шт.",1,4.12]
["Контейнер для сбора мочи (стер., 100 мл.)","шт.",1,4.74,"шт.",1,4.74]
["Контейнер для утилизации отходов МК-01 (однораз., желтый, 0,25 л.)","шт.",1,20,"шт.",1,20]
["Контейнер для утилизации отходов МК-01 (однораз., желтый, 3 л.)","шт.",1,60,"шт.",1,60]
["Контейнер для утилизации отходов МК-04 (многораз., бирюзовый, 7,5 л.).","шт.",1,400,"шт.",1,400]
["Контейнер для утилизации отходов МК-05 (многораз., желтый 50 л.)","шт.",1,2500,"шт.",1,2500]
["Контрольная сыворотка на РМП (отрицательный) (1 мл., 10 шт.)","уп.",1,3150,"шт.",10,315]
["Контрольная сыворотка на РМП (положительная) (1 мл., 10 шт.)","уп.",1,3600,"шт.",10,360]
["Контрольная сыворотка на РМП (слабоположительный) (1 мл., 10 шт.)","уп.",1,3000,"шт.",10,300]
["Контрольный материал гематологических анализаторов (2х2,5 норм. ур., 1х2,5 ср. ур., 1х2,5 выс. ур.)","набор",3,7667.17,null,null,""]
["Корвалол ","уп.",null,null,null,null,""]
["Костюм хирургический медицинский","шт.",1,731.88,"шт.",1,731.88]
["Краситель для окраски ретикулоцитов (1%, 50 мл., 2000 опред.)","фл.",2,31,null,null,""]
["Крафт-пакет (100 шт.)","уп.",2,426.82,null,null,""]
["Крючок Воячека","шт.",1,520,"шт.",1,520]
["Ланцет (скарификатор) (однораз.,  автомат., 200 шт.)","?",20,1680,"шт.",200,8.4]
["Ланцет (скарификатор) (однораз., 100 шт.)","?",55,2616,"шт.",100,26.16]
["Лейкопластырь (бактер. 2х6 см.)","шт.",1,2.2999999999999998,"шт.",1,2.2999999999999998]
["Лейкопластырь (катушка, 2х500 см.)","шт.",1,25.64,"шт.",1,25.64]
["Лейкопластырь (фикс. 6 рул.)","уп.",1,552.66,null,null,""]
["Лента диаграммная из термобумаги","шт.",1,39.200000000000003,"шт.",1,39.200000000000003]
["Лидокаин (амп., 2%, №10)","уп.",5,19.61,"шт.",10,1.9609999999999999]
["Лидокаин (спрей, 10%, 38 гр.)","уп.",3,362,null,null,""]
["Линкомицин (амп., 1 мл., №10)","уп.",4,73,"шт.",10,7.3]
["Ложка Фолькмана","шт.",1,4.4000000000000004,"шт.",1,4.4000000000000004]
["Лоток н/ж ЛМП 200","шт.",1,125,"шт.",1,125]
["Люгоря (р-р)","уп.",null,80,null,null,""]
["Мазь гидрокортизоновая (0,5%, 5 мл.)","уп.",4,46.58,"мл.",5,9.3159999999999989]
["Мазь левомеколь (40 гр.)","уп.",7,118.8,"гр.",40,2.9699999999999998]
["Мазь тетрациклиновая (1%, 5 гр.)","уп.",2,56.48,"гр.",5,11.295999999999999]
["Марля (нестр.)","м.",150,11.03,null,null,""]
["Маска Лепесток 200","шт.",1,25.25,"шт.",1,25.25]
["Маска медицинская трёхслойная, одноразовая (нестер., 50 шт.)","уп.",100,175,"шт.",50,3.5]
["Масло иммерсионное (100 мл.)","уп.",6,109,"мл.",100,1.0900000000000001]
["МДГР (5 л.)","шт.",1,1510.4,"мл.",5000,0.30208000000000002]
["Мексидол (амп., 5%, 50 мг.- 2 мл., №10)","уп.",50,397,"шт.",10,39.700000000000003]
["Мексидол (таб., 125 мг., №50)","уп.",20,384,null,null,""]
["Мембрана глюкозооксидазная (5 шт.)","уп.",5,3500,"шт.",5,700]
["Метронидазол (таб., 0,2 мг., №10)","уп.",null,null,null,null,""]
["Мешок АМБУ детский","шт.",1,3944,"шт.",1,3944]
["Микропробирка (200 мкл., антикоагул., 100 шт.)","уп.",150,1133.5999999999999,"шт.",100,11.335999999999999]
["Микропробирки типа Эппендорф (1,5 мл., 500 шт.)","уп.",6,1300,"шт.",500,2.6]
["Мультипакет для паровой стерилизации (1000 шт.)","уп.",2,1300,"шт.",1000,1.3]
["Мундштук картонный одноразовый","шт.",1,0.8,"шт.",1,0.8]
["Набор реагентов для исследования кала на гельминты, метод Като (500 опред., 500 шт.)","набор",2,970.1,null,null,""]
["Набор реагентов для клинического анализа кала","набор",2,1896.6,null,null,""]
["Набор реагентов для определения C-реактивного белка (100 опред.)","набор",6,700,null,null,""]
["Набор реагентов для определения HDL холестерина (2х50 мл.)","набор",3,1000,null,null,""]
["Набор реагентов для определения аланинаминотрансферазы (5х48 мл., 1х60 мл.)","набор",6,1000,null,null,""]
["Набор реагентов для определения альбумина (1х250 мл., 1х5 мл.)","набор",1,750,null,null,""]
["Набор реагентов для определения альфа-амилазы (120 мл.)","набор",1,3850,null,null,""]
["Набор реагентов для определения аспартатаминотрансферазы (5х48 мл., 1х60 мл.)","набор",6,1000,null,null,""]
["Набор реагентов для определения железа (2х100 мл, 1х5 мл.)","набор",2,4350,null,null,""]
["Набор реагентов для определения калия (2х50 мл.)","набор",2,3100,null,null,""]
["Набор реагентов для определения кальция (2х50 мл.)","набор",2,620,null,null,""]
["Набор реагентов для определения креатинина (100 мл.)","набор",2,550,null,null,""]
["Набор реагентов для определения магния (50 мл.)","набор",2,1200,null,null,""]
["Набор реагентов для определения мочевины (50 мл.)","набор",4,620,null,null,""]
["Набор реагентов для определения общего белка (1х1 л., 1х5 мл.)","набор",1,1600,null,null,""]
["Набор реагентов для определения общего и прямого билирубина (508 мл.)","набор",3,800,null,null,""]
["Набор реагентов для определения общего холестерина (2х100 мл.)","набор",6,1200,null,null,""]
["Набор реагентов для определения содержания антистрептолизина О (12,5 мл., 100 опред.)","набор",6,700,null,null,""]
["Набор реагентов для определения содержания ревматоидного фактора (100 опред.)","набор",6,550,null,null,""]
["Набор реагентов для определения триглицеридов (2х50 мл.)","набор",3,1000,null,null,""]
["Набор реагентов для определения фосфора (2х100 мл.)","набор",1,680,null,null,""]
["Набор реагентов для определения хлоридов (2х100 мл.)","набор",1,630,null,null,""]
["Набор реагентов для определения щелочной фосфатазы (250 мл.)","набор",1,1350,null,null,""]
["Наконечники для дозаторов 100-1000 мкл (480 шт.)","уп.",6,750,"шт.",480,1.5625]
["Наконечники для дозаторов 20-200 мкл (1000 шт.)","набор",6,1500,null,null,""]
["Напальчник","шт.",1,0.66,"шт.",1,0.66]
["Настойка йода (амп., 5%, 10 мл.)","уп.",140,13,"мл.",10,1.3]
["Натрия тиосульфат (30%, 10 мл., №10)","уп.",null,null,null,null,""]
["Натрия хлорид (амп., 0,9%, 10 мл., №10)","уп.",40,38.729999999999997,null,null,""]
["Натрия хлорид (амп., 0,9%, 5 мл., №10)","уп.",30,26.51,null,null,""]
["Натрия хлорид (стер., 0,9%, 250 мл.)","фл.",125,25.05,null,null,""]
["Натрия цитрат (р-р)","уп.",null,98,null,null,""]
["Никотиновая кислота (амп., 1%, 1 мл., №10)","фл.",null,null,null,null,""]
["Новокаин (амп., 0,5%, 5 мл., №10)","уп.",3,19.11,null,null,""]
["Новокаин (амп., 2%, 2 мл., №10)","уп.",4,16.7,null,null,""]
["Омепразол (капс., 20 мг., №30)","уп.",1,41.83,null,null,""]
["Омепразол (капс., 20 мг., №50)","уп.",null,null,null,null,""]
["Очищающая жидкость (800 промывок, 4 шт.)","уп.",2,570,"шт.",800,0.71250000000000002]
["Очищающий раствор (1 л.)","фл.",5,1660.31,null,null,""]
["Очки защитные","шт.",1,40.92,"шт.",1,40.92]
["Пакет д/стер. Самоклеющийся","шт.",1,9.43,"шт.",1,9.43]
["Пакет для сбора медицинских отходов класса Б (30 л., 100 шт.)","уп.",30,254,"шт.",100,2.54]
["Пакеты упаковочные для стерилизации СтериТ (100*200, 100 шт.)","уп.",2,700,"шт.",100,7]
["Пакеты упаковочные для стерилизации СтериТ (150*250, 100 шт.)","уп.",2,900,"шт.",100,9]
["Пакеты упаковочные для стерилизации СтериТ (200*300, 100 шт.)","уп.",1,1000,"шт.",100,10]
["Пакеты упаковочные для стерилизации СтериТ (200*330, 100 шт.)","уп.",2,1200,"шт.",100,12]
["Палочка стеклянная","шт.",1,1.6,"шт.",1,1.6]
["Пантогам (таб., 250 мг., №50)","уп.",40,390,null,null,""]
["Папаверин (амп., 2%, 2мл №10)","уп.",110,33,"шт.",10,3.3]
["Парацентезная игла","шт.",1,522,"шт.",1,522]
["Парацетамол (таб., 500 мг., №10)","уп.",400,5.3,null,null,""]
["Парацетамол детский (сусп., 100 гр.)","уп.",25,53,"гр.",100,0.53]
["Перекись водорода (3%, 100 мл.)","фл.",170,11.47,null,null,""]
["Перекись водорода (6%, 100 мл.)","фл.",null,51,null,null,""]
["Перчатки (нестер, латекс.)","пара",40000,4.04,null,null,""]
["Перчатки (нестер, нитрил.)","пара",500,3.99,null,null,""]
["Перчатки (стер, латекс.)","пара",350,8.7899999999999991,null,null,""]
["Петля микробиологическая разная стерильная","шт.",1,3.38,"шт.",1,3.38]
["Пинцет (многораз.)","шт.",1,6.4,"шт.",1,6.4]
["Пинцет (однораз., стер.)","шт.",1,6.78,"шт.",1,6.78]
["Пирацетам (амп., 20%, 5 мл., №10)","уп.",65,35,null,null,""]
["Пирацетам (капсулы 0,4 г. №60)","шт.",1,1.72,"шт.",1,1.72]
["Пирацетам (таб., 400 мг., №60)","уп.",34,143,null,null,""]
["Пиридоксина гидрохлорид (амп., 5%, 1 мл., №10)","уп.",70,26.6,null,null,""]
["Повязка медицинская (стер., 10х20 см., 25 шт.)","уп.",1,351,"шт.",25,14.04]
["Повязка медицинская (стер., 10х20 см., 50 шт.)","уп.",1,1073,"шт.",50,21.46]
["Повязка медицинская (стер., 9х10 см., 30 шт.)","уп.",1,211.8,"шт.",30,7.0600000000000005]
["Повязка медицинская (стер., 9х10 см., 50 шт.)","уп.",1,587,"шт.",50,11.74]
["Полотенце бумажное (200 шт.)","уп.",200,192.43,"шт.",200,0.96215000000000006]
["Предметное стекло (50 шт.)","уп.",10,163.5,"шт.",50,3.27]
["Преднизолон (амп., 30мг/мл, 1 мл., №3)","уп.",58,38.6,"шт.",3,12.866666666666667]
["Пробирка  вакуумная Cerebrum (6 мл., 100 шт.)","уп.",20000,4.8,"шт.",100,4.8000000000000001E-2]
["Пробирка Vacuette (4 мл., 50 шт.)","уп.",5500,10.92,"шт.",50,0.21840000000000001]
["Пробирка Vacuette (8 мл., 50 шт.)","уп.",1200,12.74,"шт.",50,0.25480000000000003]
["Пробирка Vacuette (9 мл., 50 шт.)","уп.",1000,21.1,"шт.",50,0.42200000000000004]
["Пробирка вакуумная Cerebrum (4 мл., 50 шт.)","уп.",220,240,"шт.",50,4.8]
["Пробирка вакуумная Cerebrum (5 мл., 50 шт.)","уп.",2,375,"шт.",50,7.5]
["Пробирка вакуумная Cerebrum (8 мл., 50 шт.)","уп.",20,1020,"шт.",50,20.399999999999999]
["Пробирка микровета с ЭДТА (0,2 мл., 100 шт.)","уп.",150,1133.5999999999999,"шт.",100,11.335999999999999]
["Пробирка с ватным тампоном","шт.",1,6.1,"шт.",1,6.1]
["Пробирка с ватным тампоном стерильная (без наполнителя)","шт.",1,9.08,"шт.",1,9.08]
["Пробирка стеклянная (10 мл.)","шт.",1,4.5,"шт.",1,4.5]
["Пробирки ВАКУТЕЙНЕР","?",null,null,null,null,""]
["Пробирки микробиологические одноразовые с завинчивающейся крышкой (стер., 10 мл.)","шт.",1,11.7,"шт.",1,11.7]
["Проклин антисептик (1 л. с триггером)","шт.",1,401.2,"шт.",1000,0.4012]
["Промывающий раствор (1 л.)","фл.",5,218,null,null,""]
["Промывающий раствор (5 л.)","фл.",6,3375.02,null,null,""]
["Простыня (нест, 70х80 см., 200 шт.)","рул.",45,740.8,"шт.",200,3.7039999999999997]
["Пульмикорт (суспензия для ингаляций 0,5 мг/мл, 2 мл., №20)","уп.",50,921.67,"шт.",20,46.083500000000001]
["Реагент буферная смесь (10 гр.)","уп.",2,5000,"гр.",10,500]
["Реагент изотонический разбавитель (20 л.)","уп.",33,3187.8,"мл.",20000,0.15939]
["Реагент лизирующий раствор (1 л.)","фл.",15,3039.16,null,null,""]
["Реактив Самсона (100 опред.)","набор",2,100,null,null,""]
["Рентгеновская пленка Carestream Health Dry View 5700 Laser Imager (20х25 см., 125 л.)","уп.",10,6423.4,"шт.",125,51.3872]
["Рентгеновская пленка Carestream Health Dry View 5700 Laser Imager (35х43 см., 125 л.)","уп.",6,16429.5,"шт.",125,131.43600000000001]
["Рибоксин (таб., 200 мг., №50)","уп.",5,47,null,null,""]
["Роторасширитель с фиксатором для детей","шт.",1,2180,"шт.",1,2180]
["Салфетка (спанлейс, 30х40, 100 шт.)","уп.",140,214.02,"шт.",100,2.1402000000000001]
["Салфетка (стер., 110х85 мм., 70%)","шт.",1,1.38,"шт.",1,1.38]
["Салфетка (стер., 14х16 см., №10)","уп.",200,9.01,"шт.",10,0.90100000000000002]
["Салфетка (стер., 5х5 см., №10)","уп.",700,18.39,"шт.",10,1.839]
["Салфетка (стер., 60х100 мм., 70%)","шт.",1,1.35,"шт.",1,1.35]
["Сальбутамол (100 мкг/доза, 90 доз, 12 мл. аэрозоль)","уп.",123,103.4,"доза",90,1.1488888888888888]
["Сбор успокоительный (50,0 г.)","?",null,null,null,null,""]
["Септолит-Форте (1 л.)","шт.",1,2017.8,"шт.",1000,2.0177999999999998]
["Скальпель (однораз., хир., стер.)","шт.",1,12,"шт.",1,12]
["Смесь для очистки и обезжиривания стекол (1 л.)","фл.",10,122,null,null,""]
["Сорбифер-Дурулес (таб., 320 мг., №30)","уп.",null,null,null,null,""]
["Софрадекс (капли, 5 мл.)","фл.",1,308.60000000000002,"мл.",5,61.720000000000006]
["Спирт этиловый (70%, 100 мл.)","фл.",240,19.170000000000002,null,null,""]
["Спирт этиловый (95%, 100 мл.)","фл.",50,27.68,null,null,""]
["Средство Эвойлан-Универсал с антимикробным эффектом (5 л.)","шт.",1,1438.42,"шт.",5000,0.287684]
["Стекло покровное (1000 шт.)","уп.",10,320,"шт.",1000,0.32]
["Сульфацил натрий (20%, 1,5 мл., №2)","уп.",110,39,"шт.",2,19.5]
["Сумка холодильник с электронным термоиндикатором (25 л.)","шт.",1,7975,"шт.",1,7975]
["Супрастин (амп., 2%, 1,0 мл.)","уп.",null,null,null,null,""]
["Супрастин (таб., 25 мг., №20)","уп.",null,null,null,null,""]
["Тампон-зонд (100 шт.)","уп.",5,1104,"шт.",100,11.04]
["Термобумага (57х30х12 мм.)","шт.",1,39.200000000000003,"шт.",null,""]
["Термобумага для биохимического анализатора (шир. 80 мм.)","рул.",20,90,null,null,""]
["Тест-полоски Multistix 10SG (100 шт.)","уп.",150,1437.7,"шт.",100,14.377000000000001]
["Тиамин-хлорид  (амп., 5%, 1,0 мл., №10)","уп.",null,null,"шт.",10,0]
["Токоферола ацетат (50% 100 мг., №10)","уп.",null,null,null,null,""]
["Тропикамид (капли 0,5%, 10 мл.)","уп.",null,61.78,null,null,""]
["Тропикамид (капли 1%, 10 мл.)","уп.",null,102.85,null,null,""]
["Фамотидин (таб., 20 мг., №20)","уп.",2,22.62,null,null,""]
["Фартук медицинский одноразовый","шт.",1,11.4,"шт.",1,11.4]
["Фенибут (таб., 250 мг., №20)","уп.",3,107,null,null,""]
["Фиксатор-краситель по Май-Грюнвальду (0,2%, фикс. 3000, окраска 2000, 1 л.)","фл.",6,457.8,null,null,""]
["Фильтры обеззоленные «Белая лента» (диам. 5,5 см., 100 шт.)","уп.",2,1700,null,null,""]
["Фурацилин (р-р)","уп.",null,78,null,null,""]
["Халат (хир., нест.)","шт.",1,59.92,"шт.",1,59.92]
["Халат (хир., стер.)","шт.",1,59.79,"шт.",1,59.79]
["Халат детский с капюшоном для спелеолечения","шт.",1,3.1,"шт.",1,3.1]
["Хлоргексидин (амп., 0,05%, 100 мл.)","уп.",100,12.1,null,null,""]
["Хлоропирамин (амп., 20 мг., 1 мл., №5)","уп.",45,102,null,null,""]
["Хлоропирамин (таб., 0,025 гр., №20)","уп.",20,67.16,null,null,""]
["Церебролизин (амп., 5 мл., №5)","уп.",2,1044,null,null,""]
["Цетиризин (таб., 10 мг., № 30)","уп.",35,123.59999999999998,null,null,""]
["Цианокобаламин (амп., 0,5 мг./1 мл., 1 мл., №10)","уп.",70,26.04,null,null,""]
["Цикломед (1%, 5 мл.)","уп.",30,553,null,null,""]
["Циннаризин (таб. 25 мг., №50)","уп.",5,27,null,null,""]
["Цоликлон Анти-А (флак., 10 мл., 10 шт.)","уп.",2,800,null,10,80]
["Цоликлон Анти-В (флак., 10 мл., 10 шт.)","уп.",2,800,null,10,80]
["Цоликлон Анти-Д (флак., 10 мл., 10 шт.)","уп.",2,1683,null,10,168.3]
["Чашка Петри (60 мм. х 15 мм.)","шт.",1,7.5,"шт.",1,7.5]
["Шапочка медицинская (нест.)","шт.",1,1.26,"шт.",1,1.26]
["Шпатель (стер., 100 шт.)","уп.",9000,1.76,null,null,""]
["Шприц (1 мл.)","шт.",1,3.38,"шт.",1,3.38]
["Шприц (10 мл.)","шт.",1,7.39,"шт.",1,7.39]
["Шприц (2 мл. 2 иглы)","шт.",1,4.43,"шт.",1,4.43]
["Шприц (2 мл.)","шт.",1,4.3499999999999996,"шт.",1,4.3499999999999996]
["Шприц (20 мл.)","шт.",1,10.42,"шт.",1,10.42]
["Шприц (5 мл. 2 иглы)","шт.",1,5.17,"шт.",1,5.17]
["Шприц (5 мл.)","шт.",1,5.17,"шт.",1,5.17]
["Экобак (5 л.)","шт.",1,584.88,"мл.",5000,0.116976]
["Энап (таб., 10 мг., №20)","уп.",null,null,null,null,""]
["Эуфиллин (амп., 2,4%, 10 мл., №10)","уп.",30,34.6,null,null,""]
["Языкодержатель для детей","шт.",1,695,"шт.",1,695]